[Event "Titled Tuesday Blitz March 28 Early 2023"]
[White "Smirnov, Pavel"]
[Black "Kollars, Dmitrij"]
[WhiteFideId "4123425"]
[BlackFideId "12909572"]
[WhiteElo "2519"]
[BlackElo "2584"]
[Result "0-1"]
[Round "05"]
[TimeControl "180+2"]
[Date "2023.03.28"]
[WhiteClock "0:00:02"]
[BlackClock "0:00:19"]

1. d4 {[%clk 0:03:00]}  Nf6 {[%clk 0:02:59]} 2. c4 {[%clk 0:03:00]}  e6 {[%clk 0:02:59]} 3. g3 {[%clk 0:03:01]}  d5 {[%clk 0:02:57]} 4. Nf3 {[%clk 0:03:02]}  Bb4+ {[%clk 0:02:55]} 5. Bd2 {[%clk 0:03:02]}  a5 {[%clk 0:02:55]} 6. Bg2 {[%clk 0:03:02]}  O-O {[%clk 0:02:55]} 7. Qc2 {[%clk 0:03:00]}  c5 {[%clk 0:02:55]} 8. cxd5 {[%clk 0:02:58]}  cxd4 {[%clk 0:02:55]} 9. Nxd4 {[%clk 0:02:59]}  Qb6 {[%clk 0:02:54]} 10. e3 {[%clk 0:02:58]}  exd5 {[%clk 0:02:54]} 11. O-O {[%clk 0:02:58]}  Nc6 {[%clk 0:02:54]} 12. Nxc6 {[%clk 0:02:58]}  bxc6 {[%clk 0:02:55]} 13. Rc1 {[%clk 0:02:58]}  Bd7 {[%clk 0:02:48]} 14. Nc3 {[%clk 0:02:47]}  Rab8 {[%clk 0:02:46]} 15. Na4 {[%clk 0:02:46]}  Qb5 {[%clk 0:02:41]} 16. Bxb4 {[%clk 0:02:33]}  Qxb4 {[%clk 0:02:42]} 17. b3 {[%clk 0:02:33]}  h5 {[%clk 0:02:41]} 18. Nc5 {[%clk 0:02:28]}  Rbc8 {[%clk 0:02:34]} 19. a3 {[%clk 0:02:26]}  Qb6 {[%clk 0:02:25]} 20. Qc3 {[%clk 0:02:04]}  Bf5 {[%clk 0:02:22]} 21. Qd4 {[%clk 0:01:36]}  Rfe8 {[%clk 0:02:18]} 22. Rc3 {[%clk 0:01:36]}  Ng4 {[%clk 0:01:55]} 23. Rac1 {[%clk 0:01:28]}  Ne5 {[%clk 0:01:54]} 24. h4 {[%clk 0:00:39]}  Bg4 {[%clk 0:01:53]} 25. Ne6 {[%clk 0:00:24]}  Qb8 {[%clk 0:01:41]} 26. Nxg7 {[%clk 0:00:21]}  Kxg7 {[%clk 0:00:59]} 27. f4 {[%clk 0:00:20]}  f6 {[%clk 0:01:00]} 28. fxe5 {[%clk 0:00:20]}  fxe5 {[%clk 0:01:01]} 29. Qd2 {[%clk 0:00:20]}  Re6 {[%clk 0:00:51]} 30. e4 {[%clk 0:00:19]}  d4 {[%clk 0:00:46]} 31. Rc5 {[%clk 0:00:17]}  Kh7 {[%clk 0:00:38]} 32. Rf1 {[%clk 0:00:12]}  Rc7 {[%clk 0:00:38]} 33. Qxa5 {[%clk 0:00:09]}  Rg7 {[%clk 0:00:36]} 34. Qd2 {[%clk 0:00:07]}  Qxb3 {[%clk 0:00:34]} 35. Kh2 {[%clk 0:00:06]}  Qxa3 {[%clk 0:00:30]} 36. Ra5 {[%clk 0:00:05]}  Qb3 {[%clk 0:00:25]} 37. Rf8 {[%clk 0:00:04]}  Qe3 {[%clk 0:00:21]} 38. Raa8 {[%clk 0:00:02]}  Qxd2 {[%clk 0:00:19]} 0-1


[Site "https://www.chess.com"]

[Event "Titled Tuesday Blitz March 28 Early 2023"]
[White "Firouzja, Alireza"]
[Black "Albornoz Cabrera, Carlos Daniel"]
[WhiteFideId "12573981"]
[BlackFideId "3518736"]
[WhiteElo "2904"]
[BlackElo "2501"]
[Result "1-0"]
[Round "05"]
[TimeControl "180+2"]
[Date "2023.03.28"]
[WhiteClock "0:00:43"]
[BlackClock "0:00:26"]

1. d4 {[%clk 0:02:59]}  Nf6 {[%clk 0:02:59]} 2. c4 {[%clk 0:02:59]}  g6 {[%clk 0:03:00]} 3. Nc3 {[%clk 0:02:59]}  Bg7 {[%clk 0:03:00]} 4. e4 {[%clk 0:02:59]}  d6 {[%clk 0:03:01]} 5. h3 {[%clk 0:02:59]}  O-O {[%clk 0:03:01]} 6. Be3 {[%clk 0:02:59]}  e5 {[%clk 0:02:56]} 7. d5 {[%clk 0:03:00]}  a5 {[%clk 0:02:57]} 8. c5 {[%clk 0:02:58]}  Ne8 {[%clk 0:02:55]} 9. Nf3 {[%clk 0:02:57]}  dxc5 {[%clk 0:02:54]} 10. Bxc5 {[%clk 0:02:57]}  Nd6 {[%clk 0:02:55]} 11. Bd3 {[%clk 0:02:55]}  Na6 {[%clk 0:02:55]} 12. Be3 {[%clk 0:02:55]}  f5 {[%clk 0:02:50]} 13. Rc1 {[%clk 0:02:54]}  f4 {[%clk 0:02:43]} 14. Bd2 {[%clk 0:02:54]}  Bd7 {[%clk 0:02:31]} 15. Ne2 {[%clk 0:02:46]}  Nb4 {[%clk 0:02:22]} 16. Bxb4 {[%clk 0:02:38]}  axb4 {[%clk 0:02:23]} 17. Qb3 {[%clk 0:02:39]}  Ra4 {[%clk 0:02:17]} 18. Rc2 {[%clk 0:02:26]}  g5 {[%clk 0:02:10]} 19. Nd2 {[%clk 0:02:23]}  b5 {[%clk 0:02:05]} 20. Rc5 {[%clk 0:02:10]}  h5 {[%clk 0:02:02]} 21. Bxb5 {[%clk 0:02:04]}  Ra5 {[%clk 0:01:54]} 22. Bxd7 {[%clk 0:02:01]}  Rxc5 {[%clk 0:01:54]} 23. Be6+ {[%clk 0:02:01]}  Kh8 {[%clk 0:01:54]} 24. O-O {[%clk 0:01:56]}  f3 {[%clk 0:01:39]} 25. Nxf3 {[%clk 0:01:55]}  Nxe4 {[%clk 0:01:38]} 26. Qe3 {[%clk 0:01:55]}  Rc4 {[%clk 0:01:16]} 27. b3 {[%clk 0:01:55]}  g4 {[%clk 0:01:15]} 28. bxc4 {[%clk 0:01:47]}  gxf3 {[%clk 0:01:15]} 29. Qxe4 {[%clk 0:01:48]}  Qg5 {[%clk 0:01:01]} 30. Ng3 {[%clk 0:01:15]}  Rf4 {[%clk 0:01:00]} 31. h4 {[%clk 0:00:55]}  Qxg3 {[%clk 0:00:50]} 32. fxg3 {[%clk 0:00:54]}  Rxe4 {[%clk 0:00:48]} 33. Rxf3 {[%clk 0:00:46]}  Rxc4 {[%clk 0:00:48]} 34. Rf5 {[%clk 0:00:46]}  Kh7 {[%clk 0:00:41]} 35. Rxh5+ {[%clk 0:00:47]}  Kg6 {[%clk 0:00:41]} 36. Rg5+ {[%clk 0:00:47]}  Kh6 {[%clk 0:00:39]} 37. Bf5 {[%clk 0:00:46]}  Rc3 {[%clk 0:00:31]} 38. g4 {[%clk 0:00:45]}  e4 {[%clk 0:00:26]} 39. Rh5# {[%clk 0:00:43]} 1-0


[Site "https://www.chess.com"]

[Event "Titled Tuesday Blitz March 28 Early 2023"]
[White "Mahdavi, Reza"]
[Black "Daneshvar, Bardiya"]
[WhiteFideId "12595926"]
[BlackFideId "12576468"]
[WhiteElo "2208"]
[BlackElo "2468"]
[Result "1-0"]
[Round "05"]
[TimeControl "180+2"]
[Date "2023.03.28"]
[WhiteClock "0:02:09"]
[BlackClock "0:01:47"]

1. Nf3 {[%clk 0:03:00]}  g6 {[%clk 0:02:58]} 2. g3 {[%clk 0:02:58]}  Bg7 {[%clk 0:02:58]} 3. d4 {[%clk 0:02:59]}  b6 {[%clk 0:02:58]} 4. Bg2 {[%clk 0:02:58]}  Bb7 {[%clk 0:02:58]} 5. b3 {[%clk 0:02:58]}  c5 {[%clk 0:02:57]} 6. Bb2 {[%clk 0:02:59]}  cxd4 {[%clk 0:02:57]} 7. Bxd4 {[%clk 0:03:00]}  Nf6 {[%clk 0:02:57]} 8. O-O {[%clk 0:03:00]}  d5 {[%clk 0:02:56]} 9. c4 {[%clk 0:03:00]}  dxc4 {[%clk 0:02:56]} 10. bxc4 {[%clk 0:03:01]}  O-O {[%clk 0:02:56]} 11. Qb3 {[%clk 0:02:55]}  Nc6 {[%clk 0:02:23]} 12. Bc3 {[%clk 0:02:55]}  Rc8 {[%clk 0:02:22]} 13. Rd1 {[%clk 0:02:54]}  Qc7 {[%clk 0:02:22]} 14. Na3 {[%clk 0:02:55]}  Qb8 {[%clk 0:02:22]} 15. Rac1 {[%clk 0:02:50]}  Ne4 {[%clk 0:02:17]} 16. Bxg7 {[%clk 0:02:47]}  Kxg7 {[%clk 0:02:18]} 17. Qe3 {[%clk 0:02:41]}  Nc5 {[%clk 0:02:17]} 18. Nb5 {[%clk 0:02:39]}  Rcd8 {[%clk 0:02:15]} 19. h4 {[%clk 0:02:35]}  a6 {[%clk 0:02:06]} 20. Nbd4 {[%clk 0:02:29]}  Nxd4 {[%clk 0:02:05]} 21. Nxd4 {[%clk 0:02:30]}  Bxg2 {[%clk 0:02:04]} 22. Kxg2 {[%clk 0:02:31]}  Qb7+ {[%clk 0:02:03]} 23. Nf3 {[%clk 0:02:29]}  f6 {[%clk 0:01:55]} 24. Rb1 {[%clk 0:02:14]}  Qc6 {[%clk 0:01:53]} 25. Rxd8 {[%clk 0:02:12]}  Rxd8 {[%clk 0:01:47]} 26. Qxe7+ {[%clk 0:02:09]} 1-0


[Site "https://www.chess.com"]

[Event "Titled Tuesday Blitz March 28 Early 2023"]
[White "Kramnik, Vladimir"]
[Black "Harshavardhan G B"]
[WhiteFideId "4101588"]
[BlackFideId "25059009"]
[WhiteElo "2712"]
[BlackElo "2323"]
[Result "1-0"]
[Round "05"]
[TimeControl "180+2"]
[Date "2023.03.28"]
[WhiteClock "0:00:20"]
[BlackClock "0:00:06"]

1. c4 {[%clk 0:03:00]}  Nf6 {[%clk 0:02:56]} 2. Nc3 {[%clk 0:02:59]}  e6 {[%clk 0:02:53]} 3. Nf3 {[%clk 0:02:58]}  Bb4 {[%clk 0:02:50]} 4. Qc2 {[%clk 0:02:56]}  O-O {[%clk 0:02:48]} 5. a3 {[%clk 0:02:56]}  Bxc3 {[%clk 0:02:46]} 6. Qxc3 {[%clk 0:02:57]}  b6 {[%clk 0:02:47]} 7. e3 {[%clk 0:02:53]}  Bb7 {[%clk 0:02:46]} 8. Be2 {[%clk 0:02:52]}  d6 {[%clk 0:02:44]} 9. b4 {[%clk 0:02:50]}  Nbd7 {[%clk 0:02:43]} 10. Bb2 {[%clk 0:02:50]}  a5 {[%clk 0:02:42]} 11. O-O {[%clk 0:02:49]}  e5 {[%clk 0:02:42]} 12. d3 {[%clk 0:02:48]}  Qe7 {[%clk 0:02:36]} 13. Nd2 {[%clk 0:02:46]}  c5 {[%clk 0:02:17]} 14. bxc5 {[%clk 0:02:32]}  Nxc5 {[%clk 0:02:07]} 15. Rab1 {[%clk 0:02:30]}  Qc7 {[%clk 0:01:51]} 16. Ba1 {[%clk 0:02:28]}  Rab8 {[%clk 0:01:42]} 17. Rfc1 {[%clk 0:02:17]}  Rfe8 {[%clk 0:01:40]} 18. Bf1 {[%clk 0:02:16]}  h6 {[%clk 0:01:33]} 19. Qc2 {[%clk 0:02:16]}  Bc6 {[%clk 0:01:26]} 20. Qd1 {[%clk 0:02:14]}  Qd8 {[%clk 0:01:10]} 21. d4 {[%clk 0:02:01]}  exd4 {[%clk 0:01:08]} 22. exd4 {[%clk 0:01:56]}  Ba4 {[%clk 0:01:00]} 23. Qf3 {[%clk 0:01:54]}  Nce4 {[%clk 0:01:00]} 24. Nxe4 {[%clk 0:01:49]}  Nxe4 {[%clk 0:01:01]} 25. d5 {[%clk 0:01:34]}  Qg5 {[%clk 0:00:54]} 26. Bc3 {[%clk 0:01:11]}  Nxc3 {[%clk 0:00:44]} 27. Qxc3 {[%clk 0:01:10]}  Bd7 {[%clk 0:00:39]} 28. Qd4 {[%clk 0:01:07]}  Qe5 {[%clk 0:00:38]} 29. Qxe5 {[%clk 0:01:05]}  Rxe5 {[%clk 0:00:39]} 30. h3 {[%clk 0:00:53]}  g5 {[%clk 0:00:35]} 31. Rb3 {[%clk 0:00:51]}  Bf5 {[%clk 0:00:34]} 32. f3 {[%clk 0:00:48]}  Kg7 {[%clk 0:00:32]} 33. Kf2 {[%clk 0:00:48]}  Re7 {[%clk 0:00:30]} 34. g4 {[%clk 0:00:47]}  Bg6 {[%clk 0:00:30]} 35. Rcc3 {[%clk 0:00:38]}  Rc7 {[%clk 0:00:26]} 36. Re3 {[%clk 0:00:36]}  h5 {[%clk 0:00:24]} 37. Be2 {[%clk 0:00:32]}  h4 {[%clk 0:00:18]} 38. Rb2 {[%clk 0:00:31]}  Rcb7 {[%clk 0:00:14]} 39. f4 {[%clk 0:00:29]}  gxf4 {[%clk 0:00:13]} 40. Rf3 {[%clk 0:00:30]}  b5 {[%clk 0:00:12]} 41. cxb5 {[%clk 0:00:28]}  Be4 {[%clk 0:00:12]} 42. Rxf4 {[%clk 0:00:28]}  Bxd5 {[%clk 0:00:12]} 43. Rd4 {[%clk 0:00:28]}  Be6 {[%clk 0:00:12]} 44. Rxd6 {[%clk 0:00:28]}  Kf6 {[%clk 0:00:11]} 45. Ra6 {[%clk 0:00:27]}  Ke5 {[%clk 0:00:11]} 46. b6 {[%clk 0:00:25]}  Bd5 {[%clk 0:00:07]} 47. Rxa5 {[%clk 0:00:24]}  Ke6 {[%clk 0:00:05]} 48. Rxd5 {[%clk 0:00:22]}  Kxd5 {[%clk 0:00:05]} 49. Bf3+ {[%clk 0:00:23]}  Kc5 {[%clk 0:00:04]} 50. Bxb7 {[%clk 0:00:22]}  Rxb7 {[%clk 0:00:05]} 51. Kf3 {[%clk 0:00:21]}  Rxb6 {[%clk 0:00:05]} 52. Rxb6 {[%clk 0:00:20]}  Kxb6 {[%clk 0:00:06]} 53. g5 {[%clk 0:00:20]} 1-0


[Site "https://www.chess.com"]

[Event "Titled Tuesday Blitz March 28 Early 2023"]
[White "Makhnev, Denis"]
[Black "Santos Ruiz, Miguel"]
[WhiteFideId "13707647"]
[BlackFideId "22291482"]
[WhiteElo "2525"]
[BlackElo "2504"]
[Result "1-0"]
[Round "05"]
[TimeControl "180+2"]
[Date "2023.03.28"]
[WhiteClock "0:00:13"]
[BlackClock "0:00:04"]

1. d4 {[%clk 0:02:55]}  Nf6 {[%clk 0:02:59]} 2. c4 {[%clk 0:02:56]}  e6 {[%clk 0:02:59]} 3. Nf3 {[%clk 0:02:56]}  d5 {[%clk 0:02:57]} 4. Nc3 {[%clk 0:02:56]}  a6 {[%clk 0:02:50]} 5. cxd5 {[%clk 0:02:53]}  exd5 {[%clk 0:02:48]} 6. Bg5 {[%clk 0:02:50]}  Be6 {[%clk 0:02:46]} 7. e3 {[%clk 0:02:50]}  Nbd7 {[%clk 0:02:45]} 8. Bd3 {[%clk 0:02:50]}  h6 {[%clk 0:02:45]} 9. Bf4 {[%clk 0:02:46]}  g5 {[%clk 0:02:44]} 10. Bg3 {[%clk 0:02:45]}  Nh5 {[%clk 0:02:44]} 11. Qc2 {[%clk 0:02:42]}  Nxg3 {[%clk 0:02:44]} 12. hxg3 {[%clk 0:02:42]}  Nb6 {[%clk 0:02:23]} 13. O-O-O {[%clk 0:02:39]}  Qe7 {[%clk 0:02:10]} 14. Ne5 {[%clk 0:02:29]}  O-O-O {[%clk 0:02:01]} 15. Kb1 {[%clk 0:02:29]}  Bg7 {[%clk 0:01:55]} 16. f4 {[%clk 0:02:28]}  Kb8 {[%clk 0:01:53]} 17. e4 {[%clk 0:02:17]}  Bc8 {[%clk 0:01:24]} 18. Rhe1 {[%clk 0:02:15]}  dxe4 {[%clk 0:01:14]} 19. Bxe4 {[%clk 0:02:14]}  Rhe8 {[%clk 0:01:08]} 20. Bc6 {[%clk 0:02:00]}  Qf8 {[%clk 0:00:50]} 21. Bxe8 {[%clk 0:01:58]}  Rxe8 {[%clk 0:00:50]} 22. d5 {[%clk 0:01:57]}  Rd8 {[%clk 0:00:50]} 23. Ka1 {[%clk 0:01:51]}  h5 {[%clk 0:00:46]} 24. fxg5 {[%clk 0:01:33]}  Bg4 {[%clk 0:00:43]} 25. Nxg4 {[%clk 0:01:32]}  hxg4 {[%clk 0:00:44]} 26. Qb3 {[%clk 0:01:26]}  Qc5 {[%clk 0:00:43]} 27. Ne4 {[%clk 0:01:25]}  Qa5 {[%clk 0:00:33]} 28. d6 {[%clk 0:01:24]}  cxd6 {[%clk 0:00:28]} 29. Qxf7 {[%clk 0:01:17]}  Rd7 {[%clk 0:00:13]} 30. Qb3 {[%clk 0:01:14]}  d5 {[%clk 0:00:12]} 31. Nf6 {[%clk 0:01:13]}  Rc7 {[%clk 0:00:12]} 32. Ne8 {[%clk 0:01:07]}  Bxb2+ {[%clk 0:00:07]} 33. Qxb2 {[%clk 0:01:05]}  Nc4 {[%clk 0:00:07]} 34. Qb3 {[%clk 0:00:31]}  Rc5 {[%clk 0:00:07]} 35. Rc1 {[%clk 0:00:22]}  Rb5 {[%clk 0:00:07]} 36. Qc3 {[%clk 0:00:22]}  Qa4 {[%clk 0:00:05]} 37. Rb1 {[%clk 0:00:22]}  Ra5 {[%clk 0:00:05]} 38. Re2 {[%clk 0:00:20]}  Qc6 {[%clk 0:00:02]} 39. Nf6 {[%clk 0:00:17]}  d4 {[%clk 0:00:02]} 40. Qxd4 {[%clk 0:00:16]}  Na3 {[%clk 0:00:03]} 41. Re8+ {[%clk 0:00:14]}  Qxe8 {[%clk 0:00:03]} 42. Qd6+ {[%clk 0:00:13]}  Ka8 {[%clk 0:00:04]} 43. Nxe8 {[%clk 0:00:13]}  Rb5 {[%clk 0:00:04]} 44. Rxb5 {[%clk 0:00:13]} 1-0


[Site "https://www.chess.com"]

[Event "Titled Tuesday Blitz March 28 Early 2023"]
[White "Sjugirov, Sanan"]
[Black "Cherniaiev, Tykhon"]
[WhiteFideId "4189302"]
[BlackFideId "14182360"]
[WhiteElo "2569"]
[BlackElo "2450"]
[Result "1-0"]
[Round "05"]
[TimeControl "180+2"]
[Date "2023.03.28"]
[WhiteClock "0:00:13"]
[BlackClock "0:00:09"]

1. d4 {[%clk 0:03:00]}  Nf6 {[%clk 0:02:59]} 2. Nf3 {[%clk 0:03:00]}  e6 {[%clk 0:02:59]} 3. c4 {[%clk 0:03:00]}  d5 {[%clk 0:03:00]} 4. g3 {[%clk 0:03:00]}  Be7 {[%clk 0:03:00]} 5. Bg2 {[%clk 0:03:01]}  O-O {[%clk 0:03:01]} 6. O-O {[%clk 0:03:01]}  dxc4 {[%clk 0:03:01]} 7. Qa4 {[%clk 0:03:01]}  a6 {[%clk 0:03:01]} 8. Qxc4 {[%clk 0:03:02]}  b5 {[%clk 0:03:01]} 9. Qc2 {[%clk 0:03:02]}  Bb7 {[%clk 0:03:01]} 10. Bd2 {[%clk 0:03:03]}  Nbd7 {[%clk 0:02:55]} 11. Ba5 {[%clk 0:03:02]}  Qc8 {[%clk 0:02:52]} 12. b4 {[%clk 0:02:51]}  Be4 {[%clk 0:02:37]} 13. Qc1 {[%clk 0:02:46]}  Qb7 {[%clk 0:02:32]} 14. Nbd2 {[%clk 0:02:41]}  Bd5 {[%clk 0:02:03]} 15. Qc2 {[%clk 0:02:40]}  Ne4 {[%clk 0:01:54]} 16. Bh3 {[%clk 0:02:08]}  Nb6 {[%clk 0:01:41]} 17. Rfc1 {[%clk 0:02:01]}  Nxd2 {[%clk 0:01:15]} 18. Nxd2 {[%clk 0:02:01]}  Nc4 {[%clk 0:01:14]} 19. Nxc4 {[%clk 0:01:59]}  Bxc4 {[%clk 0:01:13]} 20. Bg2 {[%clk 0:01:56]}  c6 {[%clk 0:01:13]} 21. e3 {[%clk 0:01:33]}  Bd8 {[%clk 0:01:06]} 22. Bxd8 {[%clk 0:01:28]}  Rfxd8 {[%clk 0:01:07]} 23. a4 {[%clk 0:01:24]}  h6 {[%clk 0:00:54]} 24. Ra3 {[%clk 0:01:19]}  Qe7 {[%clk 0:00:36]} 25. Qb2 {[%clk 0:01:05]}  Rac8 {[%clk 0:00:34]} 26. axb5 {[%clk 0:01:02]}  axb5 {[%clk 0:00:26]} 27. Ra6 {[%clk 0:01:01]}  Qb7 {[%clk 0:00:20]} 28. Rca1 {[%clk 0:00:59]}  Ra8 {[%clk 0:00:19]} 29. Bxc6 {[%clk 0:00:56]}  Qxa6 {[%clk 0:00:15]} 30. Bxa8 {[%clk 0:00:50]}  Rxa8 {[%clk 0:00:09]} 31. Rxa6 {[%clk 0:00:49]}  Rxa6 {[%clk 0:00:10]} 32. e4 {[%clk 0:00:41]}  Ra2 {[%clk 0:00:10]} 33. Qc1 {[%clk 0:00:40]}  Re2 {[%clk 0:00:06]} 34. f3 {[%clk 0:00:22]}  Kh7 {[%clk 0:00:06]} 35. Qd1 {[%clk 0:00:21]}  Re3 {[%clk 0:00:02]} 36. Kg2 {[%clk 0:00:04]}  Rd3 {[%clk 0:00:01]} 37. Qa1 {[%clk 0:00:04]}  Rd2+ {[%clk 0:00:02]} 38. Kh3 {[%clk 0:00:05]}  g5 {[%clk 0:00:02]} 39. g4 {[%clk 0:00:05]}  Rd3 {[%clk 0:00:01]} 40. Kg3 {[%clk 0:00:05]}  Rb3 {[%clk 0:00:02]} 41. Qd1 {[%clk 0:00:05]}  Rd3 {[%clk 0:00:01]} 42. Qg1 {[%clk 0:00:05]}  Rb3 {[%clk 0:00:01]} 43. Qf2 {[%clk 0:00:05]}  Rxb4 {[%clk 0:00:01]} 44. d5 {[%clk 0:00:04]}  exd5 {[%clk 0:00:02]} 45. exd5 {[%clk 0:00:05]}  Bxd5 {[%clk 0:00:03]} 46. Qc5 {[%clk 0:00:05]}  Rf4 {[%clk 0:00:03]} 47. Qxd5 {[%clk 0:00:05]}  b4 {[%clk 0:00:04]} 48. Qd6 {[%clk 0:00:05]}  Kg7 {[%clk 0:00:04]} 49. Qb6 {[%clk 0:00:05]}  Kh7 {[%clk 0:00:04]} 50. Qc5 {[%clk 0:00:05]}  Kg7 {[%clk 0:00:04]} 51. Qe5+ {[%clk 0:00:05]}  Kh7 {[%clk 0:00:03]} 52. h4 {[%clk 0:00:06]}  f6 {[%clk 0:00:03]} 53. Qe7+ {[%clk 0:00:06]}  Kg8 {[%clk 0:00:04]} 54. h5 {[%clk 0:00:05]}  Kh8 {[%clk 0:00:04]} 55. Qe8+ {[%clk 0:00:06]}  Kg7 {[%clk 0:00:04]} 56. Qg6+ {[%clk 0:00:07]}  Kf8 {[%clk 0:00:04]} 57. Qxh6+ {[%clk 0:00:07]}  Ke7 {[%clk 0:00:05]} 58. Qg7+ {[%clk 0:00:07]}  Kd6 {[%clk 0:00:05]} 59. Qf8+ {[%clk 0:00:07]}  Kd5 {[%clk 0:00:05]} 60. h6 {[%clk 0:00:08]}  b3 {[%clk 0:00:06]} 61. Qg8+ {[%clk 0:00:08]}  Kc5 {[%clk 0:00:05]} 62. Qxb3 {[%clk 0:00:09]}  f5 {[%clk 0:00:05]} 63. Qe3+ {[%clk 0:00:08]}  Kd5 {[%clk 0:00:05]} 64. Qxf4 {[%clk 0:00:08]}  gxf4+ {[%clk 0:00:06]} 65. Kxf4 {[%clk 0:00:09]}  fxg4 {[%clk 0:00:07]} 66. fxg4 {[%clk 0:00:09]}  Ke6 {[%clk 0:00:07]} 67. h7 {[%clk 0:00:10]}  Kf7 {[%clk 0:00:07]} 68. h8=Q {[%clk 0:00:10]}  Kg6 {[%clk 0:00:08]} 69. Qh5+ {[%clk 0:00:10]}  Kg7 {[%clk 0:00:08]} 70. Qe5+ {[%clk 0:00:10]}  Kh7 {[%clk 0:00:08]} 71. Qf6 {[%clk 0:00:10]}  Kg8 {[%clk 0:00:08]} 72. Qe7 {[%clk 0:00:11]}  Kh8 {[%clk 0:00:08]} 73. Kg5 {[%clk 0:00:12]}  Kg8 {[%clk 0:00:09]} 74. Kg6 {[%clk 0:00:12]}  Kh8 {[%clk 0:00:09]} 75. Qe8# {[%clk 0:00:13]} 1-0


[Site "https://www.chess.com"]

[Event "Titled Tuesday Blitz March 28 Early 2023"]
[White "Prohaszka, Peter"]
[Black "Dominguez Perez, Leinier"]
[WhiteFideId "726265"]
[BlackFideId "3503240"]
[WhiteElo "2626"]
[BlackElo "2647"]
[Result "0-1"]
[Round "05"]
[TimeControl "180+2"]
[Date "2023.03.28"]
[WhiteClock "0:00:04"]
[BlackClock "0:00:06"]

1. d4 {[%clk 0:02:53]}  d5 {[%clk 0:02:59]} 2. c3 {[%clk 0:02:50]}  Nf6 {[%clk 0:02:54]} 3. Nf3 {[%clk 0:02:48]}  c6 {[%clk 0:02:51]} 4. Bf4 {[%clk 0:02:45]}  Bf5 {[%clk 0:02:50]} 5. Qb3 {[%clk 0:02:44]}  Qc8 {[%clk 0:02:49]} 6. e3 {[%clk 0:02:44]}  e6 {[%clk 0:02:49]} 7. c4 {[%clk 0:02:38]}  Be7 {[%clk 0:02:49]} 8. h3 {[%clk 0:02:38]}  h6 {[%clk 0:02:48]} 9. Nc3 {[%clk 0:02:39]}  O-O {[%clk 0:02:48]} 10. Rc1 {[%clk 0:02:39]}  Nbd7 {[%clk 0:02:37]} 11. cxd5 {[%clk 0:01:59]}  exd5 {[%clk 0:02:36]} 12. Be2 {[%clk 0:01:34]}  a5 {[%clk 0:02:33]} 13. O-O {[%clk 0:01:26]}  Bd8 {[%clk 0:02:24]} 14. Nb5 {[%clk 0:01:23]}  Ne8 {[%clk 0:02:14]} 15. a4 {[%clk 0:00:47]}  Ndf6 {[%clk 0:01:59]} 16. Bd6 {[%clk 0:00:42]}  Qe6 {[%clk 0:01:27]} 17. Bxf8 {[%clk 0:00:40]}  Kxf8 {[%clk 0:01:28]} 18. Na3 {[%clk 0:00:32]}  Nd6 {[%clk 0:01:28]} 19. Ne5 {[%clk 0:00:29]}  Nfe4 {[%clk 0:01:26]} 20. Nb1 {[%clk 0:00:23]}  f6 {[%clk 0:01:13]} 21. Nd3 {[%clk 0:00:20]}  g5 {[%clk 0:01:13]} 22. Qd1 {[%clk 0:00:17]}  Bh7 {[%clk 0:00:53]} 23. Qe1 {[%clk 0:00:18]}  Nf5 {[%clk 0:00:37]} 24. Bg4 {[%clk 0:00:16]}  Bc7 {[%clk 0:00:37]} 25. Nc3 {[%clk 0:00:14]}  Qd6 {[%clk 0:00:32]} 26. f4 {[%clk 0:00:14]}  Nfg3 {[%clk 0:00:28]} 27. Rf3 {[%clk 0:00:09]}  Nxc3 {[%clk 0:00:22]} 28. bxc3 {[%clk 0:00:08]}  Ne4 {[%clk 0:00:19]} 29. c4 {[%clk 0:00:08]}  dxc4 {[%clk 0:00:18]} 30. Rxc4 {[%clk 0:00:07]}  Bg8 {[%clk 0:00:19]} 31. Rc1 {[%clk 0:00:07]}  Bd5 {[%clk 0:00:19]} 32. Ne5 {[%clk 0:00:07]}  Kg7 {[%clk 0:00:19]} 33. Nc4 {[%clk 0:00:06]}  Qe7 {[%clk 0:00:19]} 34. Bf5 {[%clk 0:00:06]}  Re8 {[%clk 0:00:19]} 35. Qe2 {[%clk 0:00:05]}  Qb4 {[%clk 0:00:12]} 36. Kh1 {[%clk 0:00:03]}  Nc3 {[%clk 0:00:12]} 37. Qd3 {[%clk 0:00:03]}  Bxf3 {[%clk 0:00:11]} 38. Qxc3 {[%clk 0:00:02]}  Qxc3 {[%clk 0:00:11]} 39. Rxc3 {[%clk 0:00:03]}  Bd5 {[%clk 0:00:11]} 40. Nd2 {[%clk 0:00:03]}  gxf4 {[%clk 0:00:11]} 41. e4 {[%clk 0:00:04]}  Bf7 {[%clk 0:00:10]} 42. Nf3 {[%clk 0:00:03]}  Bh5 {[%clk 0:00:10]} 43. Rc2 {[%clk 0:00:02]}  Rd8 {[%clk 0:00:09]} 44. Rb2 {[%clk 0:00:02]}  b6 {[%clk 0:00:09]} 45. Rc2 {[%clk 0:00:03]}  Be8 {[%clk 0:00:07]} 46. d5 {[%clk 0:00:03]}  c5 {[%clk 0:00:06]} 47. Nd4 {[%clk 0:00:03]}  Kf7 {[%clk 0:00:02]} 48. Ne6 {[%clk 0:00:02]}  Rd7 {[%clk 0:00:02]} 49. Rb2 {[%clk 0:00:01]}  Ke7 {[%clk 0:00:01]} 50. Kg1 {[%clk 0:00:01]}  Bd8 {[%clk 0:00:01]} 51. Kf1 {[%clk 0:00:01]}  Rd6 {[%clk 0:00:01]} 52. Ra2 {[%clk 0:00:01]}  Bd7 {[%clk 0:00:01]} 53. Ke2 {[%clk 0:00:01]}  Bxe6 {[%clk 0:00:02]} 54. Bxe6 {[%clk 0:00:02]}  Bc7 {[%clk 0:00:02]} 55. Kd3 {[%clk 0:00:02]}  Rd8 {[%clk 0:00:03]} 56. Kc4 {[%clk 0:00:03]}  Kd6 {[%clk 0:00:03]} 57. Kb5 {[%clk 0:00:03]}  Re8 {[%clk 0:00:04]} 58. Rc2 {[%clk 0:00:03]}  Re7 {[%clk 0:00:05]} 59. Kc4 {[%clk 0:00:03]}  Rg7 {[%clk 0:00:05]} 60. Re2 {[%clk 0:00:04]}  Rg3 {[%clk 0:00:05]} 61. Kb5 {[%clk 0:00:04]}  Re3 {[%clk 0:00:05]} 62. Rf2 {[%clk 0:00:03]}  Rxe4 {[%clk 0:00:05]} 63. Rf3 {[%clk 0:00:04]}  Rb4+ {[%clk 0:00:05]} 64. Ka6 {[%clk 0:00:04]}  Rxa4 {[%clk 0:00:06]} 65. Rg3 {[%clk 0:00:04]} 0-1


[Site "https://www.chess.com"]